Cogmind - Beta 9.1 @@@ ROGUE MODE // 2019.11.02 @ 20:38:25 Player: Nargorth Result: Destroyed by as-00569 with Assembled Rifle Performance ------------- Evolutions (0) 0 Regions Visited (3) 600 Robots Destroyed (12) 60 Value Destroyed (252) 252 Prototype IDs (2) 40 Alien Tech Used (0) 0 Bonus (-21) -21 TOTAL SCORE: 931 Bonus ------- Friendly Fire -21 Cogmind --------- Core Integrity 0/250 Matter 250/300 Energy 100/140 System Corruption 0% Temperature Cool (-89) Location -10/Exiles Parts ------- Power (1) Light Deuterium Engine Propulsion (2) Flight Unit Flight Unit Utility (2) Cryofiber Web Hacking Suite Weapon (2) Light EM Pulse Cannon Inventory (4) Flight Unit Flight Unit Light EM Pulse Cannon Peak State ------------ Power Light Deuterium Engine Propulsion Flight Unit Flight Unit Utility Advanced Terrain Scanner Hacking Suite Weapon Light EM Pulse Cannon Inventory Flight Unit Flight Unit Light EM Pulse Cannon Light EM Pulse Cannon [Rating: 13] Favorites ----------- Power Light Ion Engine Engine Light Ion Engine Propulsion Flight Unit Flight Unit Flight Unit Utility Hacking Suite Device Cryofiber Web Hackware Hacking Suite Weapon Assault Rifle Energy Gun Particle Gun Energy Cannon Light EM Pulse Cannon Ballistic Gun Assault Rifle Build | -11 -10 -10 -10 ------- Run | Scr Mat Min Exi Slots Evolved . | . . . . Power . | . . . . Propulsion . | . . . . Utility . | . . . . Weapon . | . . . . Parts Attached 22 | 2 10 9 1 Power 3 | . 2 1 . Engine 3 | . 2 1 . Core . | . . . . Reactor . | . . . . Propulsion 7 | . 5 2 . Treads . | . . . . Leg . | . . . . Wheel . | . . . . Hover . | . . . . Flight 7 | . 5 2 . Utility 4 | . 1 3 . Device 3 | . 1 2 . Storage . | . . . . Processor . | . . . . Hackware 1 | . . 1 . Protection . | . . . . Artifact . | . . . . Weapon 8 | 2 2 3 1 Energy Gun 1 | . . 1 . Energy Cannon 4 | . 1 2 1 Ballistic Gun 3 | 2 1 . . Ballistic Cannon . | . . . . Launcher . | . . . . Special Weapon . | . . . . Impact Weapon . | . . . . Slashing Weapon . | . . . . Piercing Weapon . | . . . . Special Melee Weapon . | . . . . Unidentified Prototypes . | . . . . Parts Lost 3 | . 2 1 . Power . | . . . . Propulsion 1 | . 1 . . Utility . | . . . . Weapon 2 | . 1 1 . Highest Loss Streak 1 | . 1 1 . Average Slot Usage (%) 65 | . 59 71 71 Engine 11 | . 9 14 14 Flight 24 | . 20 28 28 Device 6 | . 1 9 14 Hackware 5 | . . 9 14 Energy Cannon 5 | . 1 9 . Ballistic Gun 11 | . 25 . . Naked Turns . | . . . . Heaviest Build 10 | 4 7 10 6 Greatest Support 8 | 3 8 8 8 Greatest Overweight (x) 1 | 1 1 1 . Average Overweight (x) . | . . . . Largest Inventory Capacity 4 | 4 4 4 4 Average Capacity 4 | 4 4 4 4 Most Carried 4 | . 4 4 4 Average Carried 2 | . 1 3 3 Final Capacity 4 | 4 4 4 4 Final Carried 4 | . 4 4 3 Class Distribution -------------------- 89% | Mutant 10% | Scavenger-Mutant Dominant Class ---------------- Mutant | -10/Materials Mutant | -10/Mines Mutant | -10/Exiles Resources | -11 -10 -10 -10 ----------- Run | Scr Mat Min Exi Matter Collected 454 | 162 168 124 . Remotely . | . . . . Salvage Created 330 | . 121 209 . Parts 18 | . 13 5 . Haulers Intercepted . | . . . . Recyclers Shooed . | . . . . Parts Field Recycled . | . . . . Retrieved Matter . | . . . . Parts Self-Destructed . | . . . . Prevented . | . . . . Kills | -11 -10 -10 -10 ------- Run | Scr Mat Min Exi Combat Hostiles Destroyed 12 | . 8 4 . Guns 8 | . 8 . . Cannons 3 | . . 3 . AOE 1 | . . 1 . Classes Destroyed 2 | . 1 1 . Swarmer 8 | . 8 . . Grunt 4 | . . 4 . Best Kill Streak 4 | . 4 2 . Combat Bots Only 4 | . 4 2 . Max Kills in Single Turn 1 | . 1 1 . Gunslinging . | . . . . Exploded 1 | . . 1 . Melee . | . . . . Uniques/NPCs Destroyed . | . . . . Combat | -11 -10 -10 -10 -------- Run | Scr Mat Min Exi Damage Taken 604 | . 349 230 25 Core 250 | . 89 136 25 Absorbed by Shields . | . . . . Core Remaining (%) 100 | 100 . . . Volleys Fired 34 | . 19 14 1 Largest 2 | . 2 1 1 Hottest 56 | . 40 56 56 Shots Fired 52 | . 37 14 1 Gun 37 | . 37 . . Cannon 15 | . . 14 1 Launcher . | . . . . Special . | . . . . Kinetic 37 | . 37 . . Thermal . | . . . . Explosive . | . . . . Electromagnetic 15 | . . 14 1 Robot Hit Streak 12 | . 11 12 2 Robot Miss Streak 2 | . 2 2 . Penetration Max . | . . . . Secondary Targets . | . . . . Shots Hit Robots 36 | . 25 10 1 Core Hits 16 | . 9 6 1 Critical Hits . | . . . . Critical Kills . | . . . . Critical Parts Destroyed . | . . . . Melee Attacks . | . . . . Impact . | . . . . Slashing . | . . . . Piercing . | . . . . Sneak Attacks . | . . . . Combat Hostiles . | . . . . Follow-up Attacks . | . . . . Damage Inflicted 576 | . 262 295 19 Guns 262 | . 262 . . Cannons 280 | . . 261 19 Explosions 34 | . . 34 . Melee . | . . . . Ramming . | . . . . Kinetic 262 | . 262 . . Thermal 34 | . . 34 . Explosive . | . . . . Electromagnetic 280 | . . 261 19 Impact . | . . . . Slashing . | . . . . Piercing . | . . . . Highest Corruption . | . . . . Average Corruption . | . . . . Corruption Purged . | . . . . Overload Shots . | . . . . Overflow Damage . | . . . . Projectiles . | . . . . Explosions . | . . . . Melee . | . . . . Knockbacks . | . . . . Impact . | . . . . Kinetic . | . . . . Secondary . | . . . . Self-Inflicted Damage 39 | . . 39 . Shots 1 | . . 1 . Rammed . | . . . . Targets Rammed . | . . . . Kicked . | . . . . Crushed . | . . . . Highest Temperature 62 | . 10 62 . Average Temperature 16 | . 5 26 . Received Heat Transfer 150 | . 54 96 . Siege Activations . | . . . . Robots Corrupted . | . . . . Combat Hostiles . | . . . . Parts Fried 2 | . . 2 . Impact Corruptions . | . . . . Robots Melted . | . . . . Combat Hostiles . | . . . . Parts Melted . | . . . . Heat Transferred 50 | . . 50 . Parts Sabotaged . | . . . . Parts Stolen . | . . . . Parts Stripped . | . . . . Power Chain Reactions 1 | . . 1 . Missiles Intercepted . | . . . . Alert | -11 -10 -10 -10 ------- Run | Scr Mat Min Exi Peak Influence 232 | . 232 176 . Average Influence 116 | . 125 120 . Maximum Alert Level 1 | . 1 . . Low Security (%) 88 | . . . . Level 1 11 | . . . . Level 2 . | . . . . Level 3 . | . . . . Level 4 . | . . . . Level 5 . | . . . . High Security . | . . . . Max Security . | . . . . Squads Dispatched 1 | . 1 . . Investigation . | . . . . Extermination . | . . . . Reinforcement 1 | . 1 . . Assault . | . . . . Garrison . | . . . . Intercept . | . . . . Construction Impeded . | . . . . Haulers Reinforced . | . . . . Stealth | -11 -10 -10 -10 --------- Run | Scr Mat Min Exi Distress Signals 2 | . 2 . . Communications Jammed . | . . . . Distress Signals . | . . . . Times Spotted 34 | . 20 7 7 Peak Tracking Total 11 | . 11 2 . Tactical Retreats 7 | . 5 2 . Traps | -11 -10 -10 -10 ------- Run | Scr Mat Min Exi Traps Triggered 2 | . . 2 . Indirectly . | . . . . Trap Hack Attempts . | . . . . Triggered . | . . . . Disarmed . | . . . . Reprogrammed . | . . . . Reused . | . . . . Traps Extracted . | . . . . Installed . | . . . . Triggered . | . . . . Machines | -11 -10 -10 -10 ---------- Run | Scr Mat Min Exi Machines Disabled 1 | . 1 . . Max in Single Turn 1 | . 1 . . Machines Sabotaged . | . . . . Garrisons Compromised . | . . . . Overloaded Fab Kills . | . . . . Fab Network Shutdowns . | . . . . Hacking | -11 -10 -10 -10 --------- Run | Scr Mat Min Exi Machines Accessed 3 | . 2 1 . Terminals 2 | . 2 . . Fabricators . | . . . . Repair Stations . | . . . . Recycling Units . | . . . . Scanalyzers . | . . . . Garrison Access . | . . . . Total Hacks 7 | . 6 1 . Successful 7 | . 6 1 . Failed . | . . . . Catastrophic . | . . . . Database Lockouts . | . . . . Manual 3 | . 3 . . Terminals 6 | . 6 . . Fabricators . | . . . . Repair Stations . | . . . . Recycling Units . | . . . . Scanalyzers . | . . . . Garrison Access . | . . . . Terminal Hacks 7 | . 6 1 . Record 1 | . 1 . . Prototype ID Bank 1 | . 1 . . Open Door 1 | . . 1 . Branch Access Points 1 | . 1 . . Locate Traps 1 | . 1 . . Dispatch Records 1 | . 1 . . Zone Layout 1 | . 1 . . Fabricator Hacks . | . . . . Repair Station Hacks . | . . . . Recycling Unit Hacks . | . . . . Scanalyzer . | . . . . Garrison Access Hacks . | . . . . Unauthorized Hacks . | . . . . Terminals . | . . . . Fabricators . | . . . . Repair Stations . | . . . . Recycling Units . | . . . . Scanalyzers . | . . . . Garrison Access . | . . . . Data Cores Recovered . | . . . . Used . | . . . . Hacking Detections 1 | . 1 . . Full Trace Events . | . . . . Feedback Events . | . . . . Feedback Blocked . | . . . . Robot Schematics Acquired . | . . . . Robots Built . | . . . . Matter . | . . . . Time . | . . . . Total Robot Build Rating . | . . . . Part Schematics Acquired . | . . . . Parts Built . | . . . . Matter . | . . . . Time . | . . . . Total Part Build Rating . | . . . . Parts Repaired . | . . . . Time . | . . . . Parts Recycled . | . . . . Recycled Matter . | . . . . Retrieved Matter . | . . . . Retrieved Components . | . . . . Parts Scanalyzed . | . . . . Part Schematics Acquired . | . . . . Parts Damaged . | . . . . Bothacking | -11 -10 -10 -10 ------------ Run | Scr Mat Min Exi Used RIF Installer . | . . . . Robots Hacked . | . . . . Non-combat . | . . . . Combat . | . . . . Robot Hacks Applied . | . . . . Relay Couplers Released . | . . . . Robots Rewired . | . . . . Allies Hacked . | . . . . Hacks Repelled . | . . . . Allies | -11 -10 -10 -10 -------- Run | Scr Mat Min Exi Total Allies . | . . . . Largest Group . | . . . . Highest-Rated Group . | . . . . Highest-Rated Ally . | . . . . Total Orders . | . . . . Ally Attacks . | . . . . Total Damage . | . . . . Kills . | . . . . Allies Corrupted . | . . . . Allies Melted . | . . . . Intel | -11 -10 -10 -10 ------- Run | Scr Mat Min Exi Robot Analysis Total . | . . . . Derelict Logs Recovered 1 | . . 1 . Drone Launches . | . . . . Drone Recoveries . | . . . . Exploration | -11 -10 -10 -10 ------------- Run | Scr Mat Min Exi Turns Passed 505 | 25 218 235 27 Spaces Moved 793 | 27 294 407 65 Core 62 | 27 35 . . Treads . | . . . . Legs . | . . . . Wheels . | . . . . Hover . | . . . . Flight 731 | . 259 407 65 Fastest Speed 37 | 50 37 37 37 Average Speed 45 | 83 44 44 37 Slowest Speed 117 | 100 100 117 37 Overloaded Moves . | . . . . Propulsion Burnouts . | . . . . Robots Hopped 6 | . 3 3 . Cave-ins Triggered . | . . . . Exploration Rate (%) 37 | 3 52 74 22 Regions Visited 3 Branch Regions 2 Pre-discovered Areas 2 | . . 2 . Known Exits Taken 1 | . 1 . . Unknown Exits Taken 2 | 1 . 1 . Scrap Searched . | . . . . Spaces Dug . | . . . . Terrain Destroyed 4 | . . 4 . Melee . | . . . . Projectile . | . . . . AOE 4 | . . 4 . Actions | -11 -10 -10 -10 --------- Run | Scr Mat Min Exi Total 879 | 28 343 441 67 Wait 16 | . 7 9 . Move 778 | 26 287 400 65 Hop 6 | . 3 3 . Pick Up 9 | . 7 2 . Fast Attach 14 | 2 6 6 . Attach 5 | . 1 3 1 Detach 3 | . 2 1 . Swap 3 | . 3 . . Drop 11 | . 8 3 . Fire 34 | . 19 14 1 Melee . | . . . . Ram . | . . . . Kick . | . . . . Crush . | . . . . Escape Stasis . | . . . . Rewire . | . . . . Trap . | . . . . Miscellaneous . | . . . . Route ------- -11/Scrapyard -10/Materials (discovered 3 exits: [*Mat] / *Min x2) -10/Mines (discovered 2 exits: [*Mat] / [*Exi]) -10/Exiles (discovered 1 exit: [*Min]) History --------- Turn | Location | Event 13 | -11/Scrapyard | Discovered new exit (range 14) 26 | -11/Scrapyard | Entered Materials 95 | -10/Materials | Identified exit to Mines 125 | -10/Materials | Discovered new exit (range 4) 244 | -10/Materials | Entered Mines 255 | -10/Mines | Deemed a non-threat by the Exiles lab entrance 255 | -10/Mines | Discovered new exit (range 5) 266 | -10/Mines | Learned location of Recycling (-9) 278 | -10/Mines | Learned location of Storage (-9) 321 | -10/Mines | Met a Derelict who couldn't figure out how to use a Trap Extractor 358 | -10/Mines | Core integrity fell below 50% 418 | -10/Mines | Core integrity fell below 20% 453 | -10/Mines | Discovered new exit (range 13) 479 | -10/Mines | Entered Exiles 486 | -10/Exiles | Discovered new exit (range 15) 490 | -10/Exiles | Met 8R-AWN 497 | -10/Exiles | Met EX-HEX 500 | -10/Exiles | Build established: Mutant 506 | -10/Exiles | Attacked by the Exiles 506 | -10/Exiles | Destroyed by as-00569 with Assembled Rifle Last Messages --------------- 8R-AWN: Oh you look... interesting. The Exiles will probably want to check you out. Keep your grabby things to yourself, though. I've got my sensors on you. EX-HEX: I assure you this isn't what it looks like. We're just trying to learn more about the Assembled. They're clearly not of 0b10 construction, and their tech is weird, seemingly copying a wide array of components of other bots with little pattern or logic. It's almost like the early stages of some sort of... evolution. I'd love to just go ask the Imprinter what all this is about, she must know something, but I doubt that would end well. The Zionites will tell you those Marauders at the gates are defenses set up by Warlord... Nope, the Imprinter put them there mostly to keep us out! Anyway, I've got to get back to poking and prodding these nasty little guys. Go see BIN. I can't imagine you'll want to stay in our boring little cave for long, and we could use some help with the project in the back. 00506_ EXILES: Hostile robot within lab perimeter. Defensive protocols time, folks! Map ----- +----------------------------------------------------+ | ?????????????????????????????????????????????????? | | ?????????????????????????????????????????????????? | | ?????????????????????????????????????????????????? | | ?????????????????????????????????????????????????? | | ?????????????????????????????????????????????????? | | ?????????????????????????????????????????????????? | | ?????????????????????????????????????????????????? | | ?????????????????????????????????????????????????? | | ?????????????????????????????????????????????????? | | ?????????????????????????????????????????????????? | | ?????????????????????????????????????????????????? | | ?????????????????????????????????????????????????? | | ?????????????????????????????????????????????????? | | ?????????????????????????????????????????????????? | | ?????????????????????????????????????????????????? | | ?????????????????########????????????????????????? | | ????????????####"""""""""##??????????????????????? | | ???????????? " """ """"##?????????????????????? | | ??????????? "" " #?????????????????????? | | ??????????? " """#?????????????????????? | | ?????????? "a"#???????????#####?????? | | ?????????? " "##?????????##" #?????? | | ?????????? ""###???????#" #?????? | | ?????????? """#??????##" ##????? | | ?????????? c "#????### ###??? | | ???????????"" @ ##???# #### | | ????????????"" ##?## #"" | | ????????????""" ### | | ???????????"" ## | | ????????????"" #### | | ?????????? ""#?#"""""### | | ??????????? #"""##?#######?? | | ??????????? ######??????????? | | ???????????? ##???????????????? | | ???????????? " ##????????????????? | | ???????????? """ a ""#?????????????????? | | ?????????????" " ""#"aaa aaa"##?????????????????? | | ?????????????""" """##"""""""##??????????????????? | | ???????????????"?????#########???????????????????? | | ?????????????????????????????????????????????????? | | ?????????????????????????????????????????????????? | | ?????????????????????????????????????????????????? | | ?????????????????????????????????????????????????? | | ?????????????????????????????????????????????????? | | ?????????????????????????????????????????????????? | | ?????????????????????????????????????????????????? | | ?????????????????????????????????????????????????? | | ?????????????????????????????????????????????????? | | ?????????????????????????????????????????????????? | | ?????????????????????????????????????????????????? | +----------------------------------------------------+ Best States ------------- Heat Dissipation 25 Energy Generation 14 Energy Capacity 140 Matter Stores 260 Matter Capacity 300 Sight Range 16 Terrain Scan Range 20 Terrain Scan Density 10 Base Temperature (-) 100 Evasion (%) 62 Offensive Hacking 10 Item Schematics ----------------- None Robot Schematics ------------------ None Fabricated ------------ Nothing Alien Tech Used ----------------- None Achievements -------------- None Challenges ------------ None Game ------ Seed MobileTitaniumBeamcaster Manual? 0 Play Time 00:15:50 Cumulative 44.3 hours Start 2019.11.02 @ 20:23:34 End 2019.11.02 @ 20:38:25 Sessions 1 Manual Loads 0 Difficulty Rogue Special Mode None Game No. 44 Rogue 44 Adventurer 0 Explorer 0 Win Type - Total 0 Types 0/0/0/0/0/0/0 Lore% 29 Gallery% 41 Achievement% 33 Wizard Run 0 Options --------- ASCII 1 Keyboard 1 Movement Numpad Keybinds 0 Fullscreen 2 Font 16/SmallcapsGlow Map View 76x50 Tactical HUD 1 Map Filters NONE Filters NONE Steam 1 RUN: b376d852-6988-480e-b426-4eb9129a53e5